fUSD/lending_fUSD_20241205
["ID","MTS","AMOUNT","RATE_DAILY","PERIOD"]
[344360898,1733371841056,-2059.6,7.7e-05,2]
[344360901,1733371841069,-4082.59264752,7.7e-05,2]
[344360903,1733371841080,-1271.00260514,7.7e-05,2]
[344360905,1733371841092,-3097.1785662,7.7e-05,2]
[344360907,1733371841104,-1757.55,7.7e-05,2]
[344360913,1733371841150,-327.51594498,7.7e-05,2]
[344360915,1733371841162,-17799.13882042,7.7e-05,2]
[344360918,1733371841179,-439.72,7.7e-05,2]
[344360920,1733371841191,-6913.66260206,7.7e-05,2]
[344360922,1733371841203,-1732.81500001,7.7e-05,2]
[344360925,1733371841216,-703.68460843,7.7e-05,2]
[344360961,1733371843297,-5157.53213706,7.7e-05,2]
[344360963,1733371843352,-653.25105684,7.7e-05,2]
[344360964,1733371843363,-6718.93835595,7.7e-05,2]
[344360965,1733371843375,-20675.27449196,7.7e-05,2]
[344360966,1733371843501,-5841.25849044,7.7e-05,2]
[344360967,1733371843513,-22126.38811154,7.7e-05,2]
[344360968,1733371843545,-1098.0,7.553e-05,2]
[344360969,1733371843555,-44236.29698943,7.7e-05,2]
[344360970,1733371843567,-928501.53006147,7.7e-05,2]
[344360971,1733371843580,-5260.02781102,7.7e-05,2]
[344360972,1733371843593,-3554.71478178,7.7e-05,2]
[344360973,1733371843605,-2992.97399972,7.7e-05,2]
[344360974,1733371843616,-25750.0,7.7e-05,2]
[344360987,1733371846079,-290.0,7.498e-05,2]
[344360988,1733371846154,-213.09560118,7.498e-05,2]
[344360989,1733371846164,-500.0,7.498e-05,2]
[344360990,1733371846174,-500.0,7.499e-05,2]
[344360991,1733371846185,-500.0,7.499e-05,2]
[344360992,1733371846194,-500.0,7.499e-05,2]
[344360993,1733371846203,-150.01,7.699e-05,2]
[344360994,1733371846213,-395.19439882,7.699e-05,2]
[344360995,1733371846335,-501.23481707,7.498e-05,2]
[344360996,1733371846345,-500.0,7.499e-05,2]
[344360997,1733371846355,-6127.72786884,7.699e-05,2]
[344360998,1733371846365,-1113.76111658,7.7e-05,2]
[344360999,1733371846377,-41275.98,7.7e-05,2]
[344361000,1733371846409,-18545.63127496,7.7e-05,2]
[344361007,1733371932699,150.0,0.00021,120]
[344361009,1733372225270,600.13,6.75e-05,2]
[344361010,1733372269761,250.0,6.727e-05,2]
[344361011,1733372329791,16314.79,6.872e-05,2]
[344361013,1733372781002,-339.83,8.8e-05,7]
[344361014,1733372781026,-20306.99154107,8.9e-05,7]
[344361017,1733372824699,300.0,7e-05,2]
[344361018,1733372831894,-10551.52901639,7.699e-05,3]
[344361019,1733372831930,-200.09,8.596e-05,3]
[344361020,1733372832657,152.0,8.885e-05,6]
[344361021,1733372832961,152.0,8.732e-05,5]
[344361022,1733372833267,152.0,8.579e-05,4]
[344361023,1733372833582,152.0,8.426e-05,3]
[344361024,1733372872893,250.0,6.621e-05,2]
[344361047,1733373032453,-150.0,7.106e-05,2]
[344361048,1733373032463,-4689.82608632,7.107e-05,2]
[344361049,1733373032474,-1409.25229469,7.107e-05,2]
[344361050,1733373032487,-93592.92161899,7.107e-05,2]
[344361051,1733373032497,-1963.96597367,7.178e-05,2]
[344361052,1733373032507,-1963.96597366,7.178e-05,2]
[344361053,1733373032516,-1000.0,7.178e-05,2]
[344361054,1733373032526,-3100.043,7.251e-05,2]
[344361055,1733373032535,-175.144,7.251e-05,2]
[344361056,1733373032545,-2500.0,7.299e-05,2]
[344361057,1733373032557,-700.0,7.3e-05,2]
[344361058,1733373032567,-1026.818,7.37e-05,2]
[344361059,1733373032577,-163.67231449,7.373e-05,2]
[344361060,1733373032585,-500.0,7.373e-05,2]
[344361061,1733373032594,-500.0,7.373e-05,2]
[344361062,1733373032604,-503.90266997,7.373e-05,2]
[344361063,1733373032613,-199.82883579,7.373e-05,2]
[344361064,1733373032623,-500.0,7.373e-05,2]
[344361065,1733373032632,-500.0,7.373e-05,2]
[344361066,1733373032643,-500.0,7.397e-05,2]
[344361067,1733373032652,-500.0,7.397e-05,2]
[344361068,1733373032662,-500.0,7.397e-05,2]
[344361069,1733373032672,-500.0,7.397e-05,2]
[344361070,1733373032682,-2889.68,7.397e-05,2]
[344361071,1733373032691,-500.0,7.397e-05,2]
[344361072,1733373032702,-500.0,7.397e-05,2]
[344361073,1733373032712,-500.0,7.397e-05,2]
[344361074,1733373032722,-518.73488343,7.397e-05,2]
[344361075,1733373032731,-506.92621222,7.397e-05,2]
[344361076,1733373032741,-165.09999993,7.397e-05,2]
[344361077,1733373032751,-500.0,7.397e-05,2]
[344361078,1733373032761,-500.0,7.397e-05,2]
[344361080,1733373032771,-500.0,7.398e-05,2]
[344361082,1733373032780,-500.0,7.398e-05,2]
[344361083,1733373032790,-512.30561777,7.398e-05,2]
[344361085,1733373032799,-500.0,7.398e-05,2]
[344361086,1733373032813,-500.0,7.398e-05,2]
[344361087,1733373032823,-500.0,7.398e-05,2]
[344361089,1733373032832,-500.0,7.398e-05,2]
[344361091,1733373032842,-500.0,7.398e-05,2]
[344361093,1733373032851,-500.0,7.398e-05,2]
[344361095,1733373032861,-500.0,7.398e-05,2]
[344361097,1733373032870,-500.0,7.398e-05,2]
[344361099,1733373032879,-500.0,7.398e-05,2]
[344361101,1733373032889,-500.0,7.398e-05,2]
[344361103,1733373032899,-267.93,7.398e-05,2]
[344361105,1733373032911,-500.0,7.398e-05,2]
[344361107,1733373032921,-500.0,7.398e-05,2]
[344361109,1733373032930,-500.0,7.398e-05,2]
[344361111,1733373032940,-500.0,7.398e-05,2]
[344361113,1733373032951,-492.73129828,7.398e-05,2]
[344361115,1733373032960,-500.0,7.398e-05,2]
[344361117,1733373032970,-500.0,7.398e-05,2]
[344361119,1733373032979,-500.0,7.398e-05,2]
[344361121,1733373032991,-500.0,7.398e-05,2]
[344361123,1733373033000,-500.0,7.398e-05,2]
[344361125,1733373033010,-503.79555906,7.398e-05,2]
[344361127,1733373033020,-506.73520777,7.398e-05,2]
[344361128,1733373033030,-552.69640703,7.398e-05,2]
[344361129,1733373033039,-573.63,7.398e-05,2]
[344361130,1733373033049,-573.63,7.398e-05,2]
[344361131,1733373033062,-500.0,7.398e-05,2]
[344361132,1733373033073,-500.0,7.398e-05,2]
[344361133,1733373033084,-500.0,7.398e-05,2]
[344361134,1733373033094,-500.0,7.398e-05,2]
[344361135,1733373033104,-500.0,7.398e-05,2]
[344361136,1733373033113,-500.0,7.398e-05,2]
[344361137,1733373033124,-500.0,7.398e-05,2]
[344361138,1733373033134,-500.0,7.398e-05,2]
[344361139,1733373033144,-385.83859293,7.398e-05,2]
[344361140,1733373033155,-500.0,7.398e-05,2]
[344361141,1733373033165,-502.03224314,7.398e-05,2]
[344361142,1733373033175,-500.9426224,7.398e-05,2]
[344361143,1733373033185,-505.02076772,7.398e-05,2]
[344361144,1733373033194,-500.0,7.398e-05,2]
[344361145,1733373033203,-500.0,7.398e-05,2]
[344361146,1733373033213,-500.0,7.398e-05,2]
[344361147,1733373033222,-500.0,7.398e-05,2]
[344361148,1733373033234,-501.49491537,7.398e-05,2]
[344361149,1733373033244,-500.0,7.398e-05,2]
[344361150,1733373033254,-502.04079198,7.398e-05,2]
[344361151,1733373033263,-500.0,7.398e-05,2]
[344361152,1733373033273,-500.0,7.398e-05,2]
[344361153,1733373033283,-500.0,7.398e-05,2]
[344361154,1733373033293,-500.0,7.398e-05,2]
[344361155,1733373033302,-500.0,7.398e-05,2]
[344361156,1733373033315,-500.0,7.398e-05,2]
[344361157,1733373033325,-500.0,7.398e-05,2]
[344361158,1733373033335,-500.0,7.398e-05,2]
[344361159,1733373033345,-500.0,7.398e-05,2]
[344361160,1733373033355,-500.0,7.398e-05,2]
[344361161,1733373033365,-500.0,7.398e-05,2]
[344361162,1733373033375,-500.0,7.398e-05,2]
[344361163,1733373033385,-500.35538866,7.398e-05,2]
[344361164,1733373033395,-500.0,7.398e-05,2]
[344361165,1733373033404,-500.0,7.398e-05,2]
[344361166,1733373033414,-500.0,7.398e-05,2]
[344361167,1733373033423,-500.0,7.398e-05,2]
[344361168,1733373033433,-500.0,7.398e-05,2]
[344361169,1733373033443,-500.0,7.398e-05,2]
[344361170,1733373033453,-500.0,7.398e-05,2]
[344361171,1733373033463,-504.23220242,7.398e-05,2]
[344361172,1733373033473,-500.0,7.398e-05,2]
[344361173,1733373033483,-500.0,7.398e-05,2]
[344361174,1733373033493,-500.0,7.398e-05,2]
[344361175,1733373033502,-500.0,7.398e-05,2]
[344361176,1733373033512,-500.0,7.398e-05,2]
[344361177,1733373033522,-500.0,7.398e-05,2]
[344361178,1733373033531,-500.0,7.398e-05,2]
[344361179,1733373033541,-399.8987526,7.398e-05,2]
[344361180,1733373033550,-500.8287337,7.398e-05,2]
[344361181,1733373033562,-500.0,7.398e-05,2]
[344361182,1733373033572,-500.0,7.398e-05,2]
[344361183,1733373033581,-500.0,7.398e-05,2]
[344361184,1733373033591,-500.0,7.398e-05,2]
[344361185,1733373033601,-639.26762798,7.398e-05,2]
[344361186,1733373033611,-500.0,7.398e-05,2]
[344361187,1733373033623,-500.0,7.398e-05,2]
[344361188,1733373033633,-500.86924727,7.398e-05,2]
[344361189,1733373033643,-500.0,7.398e-05,2]
[344361190,1733373033653,-631.87186469,7.398e-05,2]
[344361191,1733373033664,-500.0,7.398e-05,2]
[344361192,1733373033674,-500.0,7.398e-05,2]
[344361193,1733373033684,-501.38349489,7.398e-05,2]
[344361194,1733373033694,-502.47980612,7.398e-05,2]
[344361195,1733373033704,-500.0,7.398e-05,2]
[344361196,1733373033714,-497.16356503,7.398e-05,2]
[344361197,1733373033724,-500.0,7.398e-05,2]
[344361198,1733373033734,-500.0,7.398e-05,2]
[344361199,1733373033744,-500.0,7.398e-05,2]
[344361200,1733373033754,-500.0,7.398e-05,2]
[344361201,1733373033764,-500.0,7.398e-05,2]
[344361202,1733373033774,-422.97820439,7.398e-05,2]
[344361203,1733373033784,-500.72563968,7.398e-05,2]
[344361204,1733373033794,-500.0,7.398e-05,2]
[344361205,1733373033807,-500.0,7.398e-05,2]
[344361206,1733373033818,-500.0,7.398e-05,2]
[344361207,1733373033828,-183.85869625,7.398e-05,2]
[344361208,1733373033838,-500.0,7.398e-05,2]
[344361209,1733373033849,-500.0,7.398e-05,2]
[344361210,1733373033859,-500.0,7.398e-05,2]
[344361211,1733373033869,-500.0,7.398e-05,2]
[344361212,1733373033879,-500.0,7.398e-05,2]
[344361213,1733373033890,-500.0,7.398e-05,2]
[344361214,1733373033900,-505.71424252,7.398e-05,2]
[344361215,1733373033910,-500.0,7.398e-05,2]
[344361216,1733373033924,-500.0,7.398e-05,2]
[344361217,1733373033934,-502.65956175,7.398e-05,2]
[344361218,1733373033943,-502.37604102,7.398e-05,2]
[344361219,1733373033954,-500.52250084,7.398e-05,2]
[344361220,1733373033964,-502.86746561,7.398e-05,2]
[344361221,1733373033973,-500.0,7.398e-05,2]
[344361222,1733373033983,-286.55481279,7.398e-05,2]
[344361223,1733373033993,-400.82672907,7.398e-05,2]
[344361224,1733373034002,-500.0,7.398e-05,2]
[344361225,1733373034012,-500.0,7.398e-05,2]
[344361226,1733373034021,-500.0,7.398e-05,2]
[344361227,1733373034032,-500.0,7.398e-05,2]
[344361228,1733373034041,-500.0,7.398e-05,2]
[344361229,1733373034051,-500.0,7.398e-05,2]
[344361230,1733373034065,-500.0,7.398e-05,2]
[344361231,1733373034076,-501.13420552,7.398e-05,2]
[344361232,1733373034085,-217.92,7.398e-05,2]
[344361233,1733373034096,-500.0,7.398e-05,2]
[344361234,1733373034106,-236.92609221,7.398e-05,2]
[344361235,1733373034115,-480.87,7.398e-05,2]
[344361236,1733373034126,-500.0,7.398e-05,2]
[344361237,1733373034136,-500.0,7.398e-05,2]
[344361238,1733373034147,-496.13431534,7.398e-05,2]
[344361239,1733373034158,-454.27896706,7.398e-05,2]
[344361240,1733373034168,-500.0,7.398e-05,2]
[344361241,1733373034179,-500.0,7.398e-05,2]
[344361242,1733373034190,-503.99654721,7.398e-05,2]
[344361243,1733373034200,-500.0,7.398e-05,2]
[344361244,1733373034210,-438.7,7.398e-05,2]
[344361245,1733373034222,-500.0,7.398e-05,2]
[344361246,1733373034232,-500.0,7.398e-05,2]
[344361247,1733373034241,-500.0,7.398e-05,2]
[344361248,1733373034251,-500.0,7.398e-05,2]
[344361249,1733373034260,-500.0,7.398e-05,2]
[344361250,1733373034271,-500.0,7.398e-05,2]
[344361251,1733373034281,-505.86921782,7.398e-05,2]
[344361252,1733373034291,-500.0,7.398e-05,2]
[344361253,1733373034301,-500.0,7.398e-05,2]
[344361254,1733373034316,-154.65984859,7.398e-05,2]
[344361255,1733373034327,-506.39688191,7.398e-05,2]
[344361256,1733373034337,-205.42047661,7.398e-05,2]
[344361257,1733373034347,-500.0,7.398e-05,2]
[344361258,1733373034357,-500.0,7.398e-05,2]
[344361259,1733373034368,-398.09669327,7.398e-05,2]
[344361260,1733373034377,-500.0,7.398e-05,2]
[344361261,1733373034387,-500.0,7.398e-05,2]
[344361262,1733373034397,-456.23234932,7.398e-05,2]
[344361263,1733373034407,-500.0,7.398e-05,2]
[344361264,1733373034416,-500.0,7.398e-05,2]
[344361265,1733373034426,-392.58,7.398e-05,2]
[344361266,1733373034435,-500.0,7.398e-05,2]
[344361267,1733373034446,-559.52422357,7.398e-05,2]
[344361268,1733373034455,-500.0,7.398e-05,2]
[344361269,1733373034465,-500.0,7.398e-05,2]
[344361270,1733373034476,-500.0,7.398e-05,2]
[344361271,1733373034485,-342.96,7.398e-05,2]
[344361272,1733373034495,-156.89,7.398e-05,2]
[344361273,1733373034505,-596.58182438,7.398e-05,2]
[344361274,1733373034515,-514.55425318,7.398e-05,2]
[344361275,1733373034524,-429.75495295,7.398e-05,2]
[344361276,1733373034534,-500.0,7.398e-05,2]
[344361277,1733373034544,-500.0,7.398e-05,2]
[344361278,1733373034553,-500.0,7.398e-05,2]
[344361279,1733373034568,-397.27251719,7.398e-05,2]
[344361280,1733373034578,-500.0,7.398e-05,2]
[344361281,1733373034587,-503.8,7.398e-05,2]
[344361282,1733373034597,-500.0,7.398e-05,2]
[344361283,1733373034607,-500.0,7.398e-05,2]
[344361284,1733373034617,-597.87361849,7.398e-05,2]
[344361285,1733373034627,-500.0,7.398e-05,2]
[344361286,1733373034637,-500.0,7.398e-05,2]
[344361287,1733373034647,-500.0,7.398e-05,2]
[344361288,1733373034657,-503.86808606,7.398e-05,2]
[344361289,1733373034667,-603.02,7.398e-05,2]
[344361290,1733373034678,-603.02,7.398e-05,2]
[344361291,1733373034688,-500.0,7.398e-05,2]
[344361292,1733373034697,-500.0,7.398e-05,2]
[344361293,1733373034707,-500.0,7.398e-05,2]
[344361294,1733373034716,-200.32881153,7.398e-05,2]
[344361295,1733373034726,-542.29,7.398e-05,2]
[344361296,1733373034735,-542.29,7.398e-05,2]
[344361297,1733373034745,-507.62993435,7.398e-05,2]
[344361298,1733373034755,-500.0,7.398e-05,2]
[344361299,1733373034765,-500.0,7.398e-05,2]
[344361300,1733373034775,-500.0,7.398e-05,2]
[344361301,1733373034785,-1574.14,7.398e-05,2]
[344361302,1733373034795,-1574.14,7.398e-05,2]
[344361303,1733373034804,-500.0,7.398e-05,2]
[344361304,1733373034818,-500.0,7.398e-05,2]
[344361305,1733373034828,-500.0,7.398e-05,2]
[344361306,1733373034838,-500.0,7.398e-05,2]
[344361307,1733373034847,-500.0,7.398e-05,2]
[344361308,1733373034857,-538.4438287,7.398e-05,2]
[344361309,1733373034867,-500.0,7.398e-05,2]
[344361310,1733373034877,-500.0,7.398e-05,2]
[344361311,1733373034886,-500.0,7.398e-05,2]
[344361312,1733373034897,-500.0,7.398e-05,2]
[344361313,1733373034907,-500.0,7.398e-05,2]
[344361314,1733373034918,-500.0,7.398e-05,2]
[344361315,1733373034928,-566.63725103,7.398e-05,2]
[344361316,1733373034938,-500.0,7.398e-05,2]
[344361317,1733373034947,-545.84,7.398e-05,2]
[344361318,1733373034956,-370.7259728,7.398e-05,2]
[344361319,1733373034967,-500.0,7.398e-05,2]
[344361320,1733373034977,-500.0,7.398e-05,2]
[344361321,1733373034986,-500.0,7.398e-05,2]
[344361322,1733373034997,-500.0,7.398e-05,2]
[344361323,1733373035007,-500.0,7.398e-05,2]
[344361324,1733373035016,-202.92164057,7.398e-05,2]
[344361325,1733373035026,-500.0,7.398e-05,2]
[344361326,1733373035035,-655.76,7.398e-05,2]
[344361327,1733373035044,-655.76,7.398e-05,2]
[344361328,1733373035054,-500.0,7.398e-05,2]
[344361329,1733373035065,-369.43,7.398e-05,2]
[344361330,1733373035075,-500.0,7.398e-05,2]
[344361331,1733373035084,-500.0,7.398e-05,2]
[344361332,1733373035094,-500.0,7.398e-05,2]
[344361333,1733373035104,-500.0,7.398e-05,2]
[344361334,1733373035113,-500.0,7.398e-05,2]
[344361335,1733373035123,-500.0,7.398e-05,2]
[344361336,1733373035135,-514.48556016,7.398e-05,2]
[344361337,1733373035144,-341.02920872,7.398e-05,2]
[344361338,1733373035154,-388.78,7.398e-05,2]
[344361339,1733373035163,-500.0,7.398e-05,2]
[344361340,1733373035173,-600.00918555,7.398e-05,2]
[344361341,1733373035182,-545.76,7.398e-05,2]
[344361342,1733373035191,-500.0,7.398e-05,2]
[344361343,1733373035200,-500.0,7.398e-05,2]
[344361344,1733373035210,-500.0,7.398e-05,2]
[344361345,1733373035220,-471.72,7.398e-05,2]
[344361346,1733373035231,-500.0,7.398e-05,2]
[344361347,1733373035240,-500.0,7.398e-05,2]
[344361348,1733373035250,-500.0,7.398e-05,2]
[344361349,1733373035260,-500.0,7.398e-05,2]
[344361350,1733373035270,-500.0,7.398e-05,2]
[344361351,1733373035279,-578.8923482,7.398e-05,2]
[344361352,1733373035288,-500.0,7.398e-05,2]
[344361353,1733373035297,-500.0,7.398e-05,2]
[344361354,1733373035308,-500.0,7.398e-05,2]
[344361355,1733373035318,-500.0,7.398e-05,2]
[344361356,1733373035327,-245.66,7.398e-05,2]
[344361357,1733373035337,-583.34779835,7.398e-05,2]
[344361358,1733373035347,-493.81425098,7.398e-05,2]
[344361359,1733373035357,-500.0,7.398e-05,2]
[344361360,1733373035366,-579.43731113,7.398e-05,2]
[344361361,1733373035376,-500.0,7.398e-05,2]
[344361362,1733373035385,-500.0,7.398e-05,2]
[344361363,1733373035395,-500.0,7.398e-05,2]
[344361364,1733373035404,-500.0,7.398e-05,2]
[344361365,1733373035413,-500.0,7.398e-05,2]
[344361366,1733373035423,-500.0,7.398e-05,2]
[344361367,1733373035431,-500.0,7.398e-05,2]
[344361368,1733373035442,-500.0,7.398e-05,2]
[344361369,1733373035451,-186.93,7.398e-05,2]
[344361370,1733373035460,-500.0,7.398e-05,2]
[344361371,1733373035469,-500.0,7.398e-05,2]
[344361372,1733373035478,-500.0,7.398e-05,2]
[344361373,1733373035488,-159.95,7.398e-05,2]
[344361374,1733373035497,-337.11357688,7.398e-05,2]
[344361375,1733373035506,-500.0,7.398e-05,2]
[344361376,1733373035515,-500.0,7.398e-05,2]
[344361377,1733373035524,-544.85,7.398e-05,2]
[344361378,1733373035535,-500.0,7.398e-05,2]
[344361379,1733373035544,-500.0,7.398e-05,2]
[344361380,1733373035554,-2889.68,7.398e-05,2]
[344361381,1733373035566,-2889.68,7.398e-05,2]
[344361382,1733373035576,-500.0,7.398e-05,2]
[344361383,1733373035585,-500.0,7.398e-05,2]
[344361384,1733373035595,-500.0,7.398e-05,2]
[344361385,1733373035606,-500.0,7.398e-05,2]
[344361386,1733373035615,-500.0,7.398e-05,2]
[344361387,1733373035625,-638.08,7.398e-05,2]
[344361388,1733373035635,-500.0,7.398e-05,2]
[344361389,1733373035644,-500.0,7.398e-05,2]
[344361390,1733373035654,-345.65622353,7.398e-05,2]
[344361391,1733373035664,-500.0,7.398e-05,2]
[344361392,1733373035673,-500.0,7.398e-05,2]
[344361393,1733373035683,-500.0,7.398e-05,2]
[344361394,1733373035693,-500.0,7.398e-05,2]
[344361395,1733373035703,-500.0,7.398e-05,2]
[344361396,1733373035712,-500.0,7.398e-05,2]
[344361397,1733373035952,-500.0,7.398e-05,2]
[344361398,1733373035962,-500.0,7.398e-05,2]
[344361399,1733373035973,-500.0,7.398e-05,2]
[344361400,1733373035983,-500.0,7.398e-05,2]
[344361401,1733373035992,-500.0,7.398e-05,2]
[344361402,1733373036002,-502.28435903,7.398e-05,2]
[344361403,1733373036011,-500.0,7.398e-05,2]
[344361404,1733373036021,-528.13325996,7.398e-05,2]
[344361405,1733373036030,-500.0,7.398e-05,2]
[344361406,1733373036039,-500.0,7.398e-05,2]
[344361407,1733373036048,-245000.0,7.399e-05,2]
[344361408,1733373036062,-500.0,7.399e-05,2]
[344361409,1733373036071,-234080.97313457,7.399e-05,2]
[344361410,1733373036432,-63919.02686543,7.399e-05,2]
[344361411,1733373036441,-1000.0,7.4e-05,2]
[344361412,1733373036451,-159.51,7.42e-05,2]
[344361413,1733373036460,-224.7774721,7.497e-05,2]
[344361414,1733373036469,-609.10635566,7.497e-05,2]
[344361415,1733373036479,-500.0,7.497e-05,2]
[344361416,1733373036488,-500.0,7.497e-05,2]
[344361417,1733373036497,-500.0,7.497e-05,2]
[344361418,1733373036507,-500.0,7.497e-05,2]
[344361419,1733373036516,-438.87,7.497e-05,2]
[344361420,1733373036525,-500.0,7.497e-05,2]
[344361421,1733373036535,-500.0,7.497e-05,2]
[344361422,1733373036545,-281.16,7.497e-05,2]
[344361423,1733373036554,-500.0,7.497e-05,2]
[344361424,1733373036565,-500.0,7.497e-05,2]
[344361425,1733373036575,-500.0,7.497e-05,2]
[344361426,1733373036584,-500.0,7.497e-05,2]
[344361427,1733373036593,-500.0,7.497e-05,2]
[344361428,1733373036602,-1968.72,7.497e-05,2]
[344361429,1733373036612,-603.02,7.497e-05,2]
[344361430,1733373036621,-500.0,7.497e-05,2]
[344361431,1733373036630,-542.29,7.497e-05,2]
[344361432,1733373036640,-1574.14,7.497e-05,2]
[344361433,1733373036649,-500.0,7.497e-05,2]
[344361434,1733373036659,-522.49088685,7.497e-05,2]
[344361435,1733373036668,-500.0,7.497e-05,2]
[344361436,1733373036678,-655.76,7.497e-05,2]
[344361437,1733373036688,-500.0,7.497e-05,2]
[344361438,1733373036697,-522.97389866,7.497e-05,2]
[344361439,1733373036706,-500.0,7.497e-05,2]
[344361440,1733373036715,-508.30460379,7.497e-05,2]
[344361441,1733373036724,-500.0,7.498e-05,2]
[344361442,1733373036734,-500.0,7.498e-05,2]
[344361443,1733373036743,-500.0,7.498e-05,2]
[344361444,1733373036753,-500.0,7.498e-05,2]
[344361445,1733373036762,-500.0,7.498e-05,2]
[344361446,1733373036771,-500.0,7.498e-05,2]
[344361447,1733373036779,-500.0,7.498e-05,2]
[344361448,1733373036788,-500.0,7.498e-05,2]
[344361449,1733373036798,-548.34,7.498e-05,2]
[344361450,1733373036809,-500.0,7.498e-05,2]
[344361451,1733373036818,-500.0,7.498e-05,2]
[344361452,1733373036827,-500.0,7.498e-05,2]
[344361453,1733373036836,-500.0,7.498e-05,2]
[344361454,1733373036845,-570.59580118,7.498e-05,2]
[344361455,1733373036854,-458.48452595,7.498e-05,2]
[344361456,1733373036863,-500.0,7.498e-05,2]
[344361457,1733373036872,-500.0,7.498e-05,2]
[344361458,1733373036881,-289.57,7.498e-05,2]
[344361459,1733373036890,-573.63,7.498e-05,2]
[344361460,1733373036900,-500.0,7.498e-05,2]
[344361461,1733373036910,-271.51688813,7.498e-05,2]
[344361462,1733373036920,-647.08286608,7.498e-05,2]
[344361463,1733373036929,-500.0,7.498e-05,2]
[344361464,1733373036939,-500.0,7.498e-05,2]
[344361465,1733373036948,-500.0,7.498e-05,2]
[344361466,1733373036958,-500.0,7.498e-05,2]
[344361467,1733373036967,-500.0,7.498e-05,2]
[344361468,1733373036977,-500.0,7.498e-05,2]
[344361469,1733373036986,-500.0,7.498e-05,2]
[344361470,1733373036997,-193.52793041,7.498e-05,2]
[344361471,1733373037006,-500.0,7.498e-05,2]
[344361472,1733373037015,-630.61087473,7.498e-05,2]
[344361473,1733373037024,-500.85438536,7.498e-05,2]
[344361474,1733373037035,-500.0,7.498e-05,2]
[344361475,1733373037044,-500.0,7.498e-05,2]
[344361476,1733373037053,-500.0,7.498e-05,2]
[344361477,1733373037065,-500.0,7.498e-05,2]
[344361478,1733373037075,-500.0,7.498e-05,2]
[344361479,1733373037085,-500.0,7.498e-05,2]
[344361480,1733373037094,-500.0,7.498e-05,2]
[344361481,1733373037104,-500.0,7.498e-05,2]
[344361482,1733373037113,-500.0,7.498e-05,2]
[344361483,1733373037123,-500.0,7.498e-05,2]
[344361484,1733373037133,-500.0,7.498e-05,2]
[344361485,1733373037142,-500.0,7.498e-05,2]
[344361486,1733373037151,-500.0,7.498e-05,2]
[344361487,1733373037160,-226.57,7.498e-05,2]
[344361488,1733373037170,-567.51312688,7.498e-05,2]
[344361489,1733373037179,-500.0,7.498e-05,2]
[344361490,1733373037189,-500.0,7.498e-05,2]
[344361491,1733373037198,-500.0,7.498e-05,2]
[344361492,1733373037207,-500.0,7.498e-05,2]
[344361493,1733373037217,-500.0,7.498e-05,2]
[344361494,1733373037226,-500.0,7.498e-05,2]
[344361495,1733373037235,-500.0,7.498e-05,2]
[344361496,1733373037244,-265.88618617,7.498e-05,2]
[344361497,1733373037253,-500.0,7.498e-05,2]
[344361498,1733373037263,-500.0,7.498e-05,2]
[344361499,1733373037273,-500.0,7.498e-05,2]
[344361500,1733373037282,-500.0,7.498e-05,2]
[344361501,1733373037293,-500.0,7.498e-05,2]
[344361502,1733373037302,-500.0,7.498e-05,2]
[344361503,1733373037313,-500.0,7.498e-05,2]
[344361504,1733373037323,-509.14869757,7.498e-05,2]
[344361505,1733373037332,-500.0,7.498e-05,2]
[344361506,1733373037341,-500.0,7.498e-05,2]
[344361507,1733373037351,-500.0,7.498e-05,2]
[344361508,1733373037360,-500.0,7.498e-05,2]
[344361509,1733373037369,-486.69460105,7.498e-05,2]
[344361510,1733373037379,-500.0,7.498e-05,2]
[344361511,1733373037388,-500.0,7.498e-05,2]
[344361512,1733373037397,-500.0,7.498e-05,2]
[344361513,1733373037407,-500.0,7.498e-05,2]
[344361514,1733373037416,-386.68784259,7.498e-05,2]
[344361515,1733373037425,-500.0,7.498e-05,2]
[344361516,1733373037434,-500.0,7.498e-05,2]
[344361517,1733373037444,-500.0,7.498e-05,2]